bitfinex/quotes_BTCUSD_20250212
["timestamp","ask_amount","ask_price","bid_price","bid_amount"]
[1739328498779,0.00122408,96001.0,96000.0,99.224427]
[1739328500386,0.00122408,96001.0,96000.0,99.099527]
[1739328500578,0.15022408,96001.0,96000.0,99.097527]
[1739328500866,1.19432508,96001.0,96000.0,99.099527]
[1739328501218,0.96164832,96001.0,96000.0,99.097527]
[1739328501415,0.96164832,96001.0,96000.0,99.095527]
[1739328501622,1.053582,96001.0,96000.0,99.098527]
[1739328501819,1.20983,96001.0,96000.0,99.096527]
[1739328502401,1.133378,96001.0,96000.0,99.096527]
[1739328502575,1.138378,96001.0,96000.0,99.095527]
[1739328502903,1.16175477,96001.0,96000.0,99.095527]
[1739328503107,1.14460277,96001.0,96000.0,99.095527]
[1739328503311,1.14660277,96001.0,96000.0,99.095527]
[1739328503490,1.29660277,96001.0,96000.0,99.095527]
[1739328503702,1.25609277,96001.0,96000.0,99.095527]
[1739328503904,1.25109277,96001.0,96000.0,99.095527]
[1739328504129,1.25609277,96001.0,96000.0,99.095527]
[1739328504607,1.25109277,96001.0,96000.0,99.095527]
[1739328504809,1.25209277,96001.0,96000.0,99.095527]
[1739328505166,1.25409277,96001.0,96000.0,99.095527]
[1739328505372,1.24909277,96001.0,96000.0,99.095527]
[1739328505572,1.25409277,96001.0,96000.0,99.095527]
[1739328505758,1.25609277,96001.0,96000.0,99.095527]
[1739328505959,0.33262477,96001.0,96000.0,99.095527]
[1739328506158,1.26352077,96001.0,96000.0,99.095527]
[1739328506514,1.26552077,96001.0,96000.0,99.095527]
[1739328506724,1.24989977,96001.0,96000.0,99.095527]
[1739328506882,0.32962477,96001.0,96000.0,99.19803065]
[1739328507111,0.33462477,96001.0,96000.0,99.19803065]
[1739328507329,0.33462477,96001.0,96000.0,99.095527]
[1739328507548,0.30847208,96001.0,96000.0,99.224027]
[1739328507848,0.31547208,96001.0,96000.0,99.224027]
[1739328508191,0.31147208,96001.0,96000.0,99.224027]
[1739328508458,0.30747208,96001.0,96000.0,99.224027]
[1739328508670,0.001,96001.0,96000.0,99.32653065]
[1739328509281,0.156248,96001.0,96000.0,99.224027]
[1739328509901,0.156248,96001.0,96000.0,99.095527]
[1739328510106,0.17257459,96001.0,96000.0,99.096527]
[1739328510448,2.43487359,96001.0,96000.0,99.098527]
[1739328510651,2.74174159,96001.0,96000.0,99.098527]
[1739328510859,2.83178359,96001.0,96000.0,99.096527]
[1739328511256,2.84278359,96001.0,96000.0,99.095527]
[1739328511495,2.84678359,96001.0,96000.0,99.095527]
[1739328511689,2.83578359,96001.0,96000.0,99.095527]
[1739328512123,2.85578359,96001.0,96000.0,99.095527]
[1739328512322,2.56280659,96001.0,96000.0,99.095527]
[1739328512845,2.56780659,96001.0,96000.0,99.095527]
[1739328513772,2.55380659,96001.0,96000.0,99.095527]
[1739328513979,2.55403067,96001.0,96000.0,99.095527]
[1739328514121,2.48215467,96001.0,96000.0,99.095527]
[1739328515082,2.17570018,96001.0,96000.0,99.095527]
[1739328515389,2.14787218,96001.0,96000.0,99.095527]
[1739328516783,1.98511118,96001.0,96000.0,99.095527]
[1739328519517,1.98511118,96001.0,96000.0,99.090527]
[1739328520013,1.71478152,96001.0,96000.0,99.090527]
[1739328520140,1.81955108,96001.0,96000.0,99.090527]
[1739328521222,1.17375508,96001.0,96000.0,99.090527]
[1739328521394,1.15575508,96001.0,96000.0,99.171527]
[1739328521625,1.05397908,96001.0,96000.0,99.171527]
[1739328521745,1.07197908,96001.0,96000.0,99.171527]
[1739328522428,1.22197908,96001.0,96000.0,99.171527]
[1739328523184,1.21988953,96001.0,96000.0,99.171527]
[1739328523788,0.97925953,96001.0,96000.0,99.171527]
[1739328524184,0.32238253,96001.0,96000.0,99.171527]
[1739328524510,0.97925953,96001.0,96000.0,99.171527]
[1739328525687,0.97948361,96001.0,96000.0,99.171527]
[1739328526926,0.87242661,96001.0,96000.0,99.171527]
[1739328527519,0.87185411,96001.0,96000.0,99.171527]
[1739328534889,0.32203411,96001.0,96000.0,99.171527]
[1739328535394,0.86895611,96001.0,96000.0,99.171527]
[1739328543093,0.85690211,96001.0,96000.0,99.171527]
[1739328544190,0.17203411,96001.0,96000.0,99.171527]
[1739328544639,0.17203411,96001.0,96000.0,99.220127]
[1739328545342,0.32203411,96001.0,96000.0,99.220127]
[1739328545560,0.17203411,96001.0,96000.0,99.220127]
[1739328545784,0.32203411,96001.0,96000.0,99.220127]
[1739328547618,0.32203411,96001.0,96000.0,99.32263065]
[1739328548208,0.32203411,96001.0,96000.0,99.220127]
[1739328549299,0.30903411,96001.0,96000.0,99.220127]
[1739328549502,0.31003411,96001.0,96000.0,99.220127]
[1739328549939,0.31203411,96001.0,96000.0,99.220127]
[1739328553304,0.41203411,96001.0,96000.0,99.220127]
[1739328555884,0.41203411,96001.0,96000.0,99.34563065]
[1739328555885,0.10822408,96001.0,96000.0,99.34563065]
[1739328556942,0.10822408,96001.0,96000.0,99.50188065]
[1739328558341,0.10222408,96001.0,96000.0,99.50188065]
[1739328558773,0.10022408,96001.0,96000.0,99.50388065]
[1739328559004,0.10022408,96001.0,96000.0,99.6073843]
[1739328559968,0.10022408,96001.0,96000.0,100.1422843]
[1739328560399,0.00013253,96019.0,96018.0,0.15622]
[1739328560552,0.00013253,96019.0,96018.0,0.28172365]
[1739328560764,0.00013253,96019.0,96018.0,0.40772365]
[1739328560963,0.00013253,96019.0,96018.0,0.49015582]
[1739328561590,0.00113253,96019.0,96018.0,0.49015582]
[1739328562216,0.02060952,96042.0,96019.0,0.023]
[1739328562419,0.156194,96034.0,96024.0,0.156209]
[1739328562625,0.156194,96034.0,96025.0,0.18330365]
[1739328562834,4.434e-05,96035.0,96026.0,0.05707996]
[1739328563048,4.434e-05,96035.0,96028.0,0.126]
[1739328563242,0.15623734,96035.0,96029.0,0.00104121]
[1739328563521,4.434e-05,96035.0,96028.0,0.126]
[1739328563929,0.002,96034.0,96028.0,0.126]
[1739328564115,0.002,96034.0,96029.0,0.03847137]
[1739328565485,0.156196,96033.0,96029.0,0.001]
[1739328566730,0.156196,96033.0,96028.0,0.126]
[1739328566901,0.156196,96033.0,96029.0,0.001]
[1739328567077,0.165196,96033.0,96029.0,0.001]
[1739328567277,0.009,96033.0,96029.0,0.001]
[1739328567746,0.002,96033.0,96029.0,0.03857147]
[1739328567954,0.009,96033.0,96029.0,0.03857147]
[1739328568310,0.002,96033.0,96029.0,0.03857147]
[1739328569020,0.002,96033.0,96030.0,0.0757]
[1739328569820,0.009,96033.0,96030.0,0.0757]
[1739328570055,0.009,96033.0,96031.0,0.04191841]
[1739328570303,0.1,96034.0,96031.0,0.04191841]
[1739328570555,0.002,96033.0,96031.0,0.04191841]
[1739328570753,0.009,96033.0,96031.0,0.04191841]
[1739328571316,0.002,96033.0,96031.0,0.04191841]
[1739328571537,0.002,96033.0,96031.0,0.04291841]
[1739328572035,0.11,96034.0,96031.0,0.04291841]
[1739328572193,0.002,96033.0,96031.0,0.04291841]
[1739328572850,0.00222387,96033.0,96031.0,0.04391841]
[1739328573061,0.00222387,96033.0,96031.0,0.003]
[1739328573264,0.00922387,96033.0,96031.0,0.003]
[1739328573665,0.00222387,96033.0,96031.0,0.002]
[1739328575548,0.15841987,96033.0,96031.0,0.002]
[1739328576655,0.00222387,96033.0,96031.0,0.002]
[1739328580788,0.00222387,96033.0,96032.0,0.02254037]
[1739328581487,0.00022387,96033.0,96031.0,0.002]
[1739328581669,0.00022387,96033.0,96030.0,0.0757]
[1739328581883,0.00022387,96033.0,96032.0,0.002]
[1739328582650,0.00022387,96033.0,96030.0,0.0757]
[1739328582857,0.00022387,96033.0,96030.0,0.0777]
[1739328583272,0.00022387,96033.0,96030.0,0.0757]
[1739328584696,0.00022387,96033.0,96032.0,0.002]
[1739328585122,0.00022387,96033.0,96031.0,0.0001065]
[1739328586016,0.156197,96032.0,96031.0,0.0001065]
[1739328586777,0.156197,96032.0,96031.0,0.0021065]
[1739328586989,0.428197,96032.0,96031.0,0.0021065]
[1739328587197,1.429762,96032.0,96031.0,0.0021065]
[1739328587398,1.031373,96032.0,96031.0,0.0021065]
[1739328587739,0.949833,96032.0,96031.0,0.0031065]
[1739328588141,0.949833,96032.0,96031.0,0.0011065]
[1739328588345,0.949833,96032.0,96031.0,0.0031065]
[1739328588552,0.97028603,96032.0,96031.0,0.0011065]
[1739328588869,0.97028603,96032.0,96031.0,0.0001065]
[1739328589095,0.97025235,96032.0,96031.0,0.0001065]
[1739328589300,0.97825235,96032.0,96031.0,0.0011065]
[1739328589506,0.98025235,96032.0,96031.0,0.0011065]
[1739328589697,0.97225235,96032.0,96031.0,0.0001065]
[1739328589906,0.97625235,96032.0,96031.0,0.0011065]
[1739328590046,0.97825235,96032.0,96031.0,0.0011065]
[1739328590249,0.99457509,96032.0,96031.0,0.0011065]
[1739328590452,0.98657509,96032.0,96031.0,0.0001065]
[1739328590689,0.98657509,96032.0,96031.0,0.0011065]
[1739328590902,0.99048091,96032.0,96031.0,0.0011065]
[1739328591820,0.98848091,96032.0,96031.0,0.0011065]
[1739328592020,0.98048091,96032.0,96031.0,0.0001065]
[1739328592194,0.99048091,96032.0,96031.0,0.0011065]
[1739328592853,0.99248091,96032.0,96031.0,0.0011065]
[1739328593037,0.99248091,96032.0,96031.0,0.0001065]
[1739328593038,0.98048091,96032.0,96031.0,0.0001065]
[1739328593182,0.98848091,96032.0,96031.0,0.0011065]
[1739328593382,0.99048091,96032.0,96031.0,0.0011065]
[1739328593650,0.98848091,96032.0,96031.0,0.0011065]
[1739328593770,0.98048091,96032.0,96031.0,0.0001065]
[1739328594174,1.07138091,96032.0,96031.0,0.0001065]
[1739328594619,0.54974491,96032.0,96031.0,0.0001065]
[1739328594823,1.45602991,96032.0,96031.0,0.0001065]
[1739328595070,1.42988391,96032.0,96031.0,0.0011065]
[1739328595211,1.53238756,96032.0,96031.0,0.0011065]
[1739328595632,0.306246,96002.0,96001.0,0.04631729]
[1739328595842,0.306246,96002.0,96001.0,0.00011729]
[1739328596822,0.306246,96002.0,96001.0,0.00024982]
[1739328598387,0.308246,96002.0,96001.0,0.01224982]
[1739328598584,0.307246,96002.0,96001.0,0.01024982]
[1739328598797,0.307246,96002.0,96001.0,0.00224982]
[1739328599259,0.307246,96002.0,96001.0,0.01024982]
[1739328599537,0.306246,96002.0,96001.0,0.00224982]
[1739328599740,0.306246,96002.0,96001.0,0.00024982]
[1739328599875,0.001,96002.0,96001.0,0.21325712]
[1739328600083,0.001,96002.0,96001.0,0.34515712]
[1739328601115,0.208283,96023.0,96010.0,0.0825]
[1739328601351,0.00768,96038.0,96012.0,0.0474]
[1739328601607,0.156224,96016.0,96013.0,0.10354498]
[1739328601837,0.15,96015.0,96013.0,0.10250365]
[1739328602685,0.15,96020.0,96013.0,0.10250365]
[1739328602904,0.208287,96021.0,96013.0,0.10250365]
[1739328602905,0.156226,96015.0,96013.0,0.10250365]
[1739328603459,0.156228,96013.0,96012.0,0.0474]
[1739328603707,0.156228,96013.0,96012.0,0.14990365]
[1739328605372,0.157228,96013.0,96012.0,0.15790365]
[1739328605735,0.156228,96013.0,96012.0,0.15190365]
[1739328605903,0.156228,96013.0,96012.0,0.14990365]
[1739328606110,0.157228,96013.0,96012.0,0.15790365]
[1739328606310,0.157228,96013.0,96012.0,0.15990365]
[1739328609079,0.16971331,96013.0,96012.0,0.15990365]
[1739328610076,0.16971331,96013.0,96012.0,0.15790365]
[1739328610440,0.16971331,96013.0,96012.0,0.18394402]
[1739328610642,0.15325093,96013.0,96012.0,0.17605052]
[1739328610851,0.15425093,96013.0,96012.0,0.16001015]
[1739328611453,0.15325093,96013.0,96012.0,0.15201015]
[1739328611659,0.15325093,96013.0,96012.0,0.15901015]
[1739328611862,0.15425093,96013.0,96012.0,0.15901015]
[1739328612094,0.15425093,96013.0,96012.0,0.16101015]
[1739328612303,0.15425093,96013.0,96012.0,0.15901015]
[1739328612496,0.15325093,96013.0,96012.0,0.15001015]
[1739328612805,0.15325093,96013.0,96012.0,0.15201015]
[1739328613883,0.15425093,96013.0,96012.0,0.16101015]
[1739328615124,0.15325093,96013.0,96012.0,0.15201015]
[1739328615263,0.15325093,96013.0,96012.0,0.15001015]
[1739328615459,0.15425093,96013.0,96012.0,0.15901015]
[1739328615657,0.15425093,96013.0,96012.0,0.16101015]
[1739328617478,0.15425093,96013.0,96012.0,0.18536116]
[1739328618157,0.15325093,96013.0,96012.0,0.17636116]
[1739328618462,0.15325093,96013.0,96012.0,0.18436116]
[1739328618663,0.15425093,96013.0,96012.0,0.18436116]
[1739328618840,0.15525093,96013.0,96012.0,0.18636116]
[1739328619638,0.002,96013.0,96012.0,0.18636116]
[1739328619818,0.002,96013.0,96012.0,0.21040259]
[1739328620022,0.208274,96028.0,96012.0,0.20936116]
[1739328620250,0.15622,96019.0,96013.0,0.13273111]
[1739328620613,0.15622,96019.0,96013.0,0.13168977]
[1739328620829,0.01543362,96028.0,96013.0,0.13168977]
[1739328621049,0.15622,96019.0,96014.0,0.00104133]
[1739328621229,0.15622,96019.0,96015.0,0.10250365]
[1739328621422,0.15,96020.0,96016.0,0.02866963]
[1739328621658,0.156217,96020.0,96017.0,0.10250365]
[1739328622644,0.208285,96022.0,96017.0,0.10250365]
[1739328622839,0.156219,96019.0,96017.0,0.10250365]
[1739328623052,0.156219,96019.0,96018.0,0.02308659]
[1739328623249,0.156219,96019.0,96018.0,0.10250365]
[1739328624682,0.157219,96019.0,96018.0,0.11350365]
[1739328624883,0.1728293,96019.0,96018.0,0.11650365]
[1739328625091,0.1738293,96019.0,96018.0,0.11650365]
[1739328625906,0.1738293,96019.0,96018.0,0.014]
[1739328627879,0.6651823,96019.0,96018.0,0.014]
[1739328628082,0.9135473,96019.0,96018.0,0.014]
[1739328628313,0.306228,96013.0,96012.0,0.0001065]
[1739328628642,1.126516,96013.0,96012.0,0.0001065]
[1739328628852,1.073387,96013.0,96012.0,0.0001065]
[1739328630847,1.077387,96013.0,96012.0,0.0001065]
[1739328631334,1.074387,96013.0,96012.0,0.0001065]
[1739328631572,1.073387,96013.0,96012.0,0.0001065]
[1739328632601,1.09071009,96013.0,96012.0,0.0001065]
[1739328632894,1.09171009,96013.0,96012.0,0.0001065]
[1739328633123,1.09271009,96013.0,96012.0,0.0001065]
[1739328633355,1.09071009,96013.0,96012.0,0.0001065]
[1739328633467,1.01499009,96013.0,96012.0,0.0001065]
[1739328635024,0.99253609,96013.0,96012.0,0.0001065]
[1739328635701,0.98203309,96013.0,96012.0,0.0001065]
[1739328636048,0.81256809,96013.0,96012.0,0.0001065]
[1739328636200,0.796245,96013.0,96012.0,0.0001065]
[1739328636612,0.89874865,96013.0,96012.0,0.0001065]
[1739328636811,0.97874865,96013.0,96012.0,0.0001065]
[1739328637477,0.97874865,96013.0,96012.0,5e-07]
[1739328637678,0.48973165,96013.0,96012.0,5e-07]
[1739328637885,0.48873165,96013.0,96012.0,5e-07]
[1739328638242,0.49273165,96013.0,96012.0,5e-07]
[1739328639167,0.52305643,96013.0,96012.0,5e-07]
[1739328640586,0.306246,96002.0,96001.0,0.00024982]
[1739328641277,0.32257176,96002.0,96001.0,0.00024982]
[1739328641941,0.32357176,96002.0,96001.0,0.00024982]
[1739328642600,0.32957176,96002.0,96001.0,0.00024982]
[1739328644639,0.32957176,96002.0,96001.0,0.00013253]
[1739328645020,0.35070617,96002.0,96001.0,0.00013253]
[1739328646287,0.36525813,96002.0,96001.0,0.00023903]
[1739328647203,0.36525813,96002.0,96001.0,0.00035632]
[1739328652547,0.05901213,96002.0,96001.0,0.00035632]
[1739328653542,0.21525813,96002.0,96001.0,0.00035632]
[1739328656140,0.36525813,96002.0,96001.0,0.00035632]
[1739328659493,0.21525813,96002.0,96001.0,0.00035632]
[1739328660432,0.19412372,96002.0,96001.0,0.00035632]
[1739328660660,0.17779796,96002.0,96001.0,0.00035632]
[1739328660911,0.17779796,96002.0,96001.0,0.01082557]
[1739328661357,0.17779796,96002.0,96001.0,0.01070828]
[1739328661805,0.17779796,96002.0,96001.0,0.00023903]
[1739328666019,0.17779796,96002.0,96001.0,0.00035632]
[1739328666224,0.32779796,96002.0,96001.0,0.00035632]
[1739328669193,0.32779796,96002.0,96000.0,99.09040971]
[1739328669194,0.306248,96001.0,96000.0,98.80868829]
[1739328669393,2.99954465,96001.0,96000.0,98.79118829]
[1739328669585,2.47510965,96001.0,96000.0,98.79118829]
[1739328669952,2.33843765,96001.0,96000.0,98.79118829]
[1739328671264,2.35443765,96001.0,96000.0,98.79118829]
[1739328671647,2.28660165,96001.0,96000.0,98.79118829]
[1739328672831,2.16070265,96001.0,96000.0,98.79118829]
[1739328673027,1.9239831,96001.0,96000.0,98.79118829]
[1739328673232,1.0636231,96001.0,96000.0,98.79118829]
[1739328675081,1.8721181,96001.0,96000.0,98.79118829]
[1739328675630,1.8578061,96001.0,96000.0,98.79118829]
[1739328676442,1.7804061,96001.0,96000.0,98.79118829]
[1739328677506,1.79673318,96001.0,96000.0,98.79118829]
[1739328681794,1.78905318,96001.0,96000.0,98.79118829]
[1739328682123,1.66641218,96001.0,96000.0,98.79118829]
[1739328682655,1.36034318,96001.0,96000.0,98.79118829]
[1739328682862,1.08525453,96001.0,96000.0,98.79118829]
[1739328683073,1.05035653,96001.0,96000.0,98.79118829]
[1739328683299,1.03420953,96001.0,96000.0,98.79118829]
[1739328683945,0.9907404,96001.0,96000.0,98.79118829]
[1739328684735,0.5280074,96001.0,96000.0,98.79118829]
[1739328684935,0.6842554,96001.0,96000.0,98.79118829]
[1739328687043,0.8266154,96001.0,96000.0,98.79118829]
[1739328687242,0.8342554,96001.0,96000.0,98.79118829]
[1739328687966,0.5409114,96001.0,96000.0,98.79118829]
[1739328688216,0.5143214,96001.0,96000.0,98.79118829]
[1739328689134,0.4943214,96001.0,96000.0,98.79118829]
[1739328689381,0.4825364,96001.0,96000.0,98.79118829]
[1739328692509,0.34321632,96001.0,96000.0,98.79118829]
[1739328692708,0.17247187,96001.0,96000.0,98.83868829]
[1739328695717,0.18879742,96001.0,96000.0,98.83868829]
[1739328701013,0.208328,96003.0,96000.0,98.83868829]
[1739328701218,0.156248,96001.0,96000.0,98.83868829]
[1739328702564,0.156248,96001.0,96000.0,98.93459512]
[1739328702760,0.156248,96001.0,96000.0,98.83868829]
[1739328704585,0.159248,96001.0,96000.0,98.83868829]
[1739328705160,0.166248,96001.0,96000.0,98.83968829]
[1739328705924,0.156248,96001.0,96000.0,98.83868829]
[1739328707133,0.166248,96001.0,96000.0,98.83968829]
[1739328707545,0.306248,96001.0,96000.0,98.83868829]
[1739328707765,0.309248,96001.0,96000.0,98.83868829]
[1739328707968,0.31247187,96001.0,96000.0,98.83868829]
[1739328708196,0.30947187,96001.0,96000.0,98.83868829]
[1739328708878,0.31047187,96001.0,96000.0,98.83868829]
[1739328712886,0.16047187,96001.0,96000.0,98.94119194]
[1739328713091,0.00422387,96001.0,96000.0,99.12659559]
[1739328714078,0.00422387,96001.0,96000.0,99.30584559]
[1739328714894,0.00122387,96001.0,96000.0,99.30584559]
[1739328715114,0.00122387,96001.0,96000.0,99.84074559]
[1739328715520,0.00022387,96001.0,96000.0,99.84074559]
[1739328715983,0.00122387,96001.0,96000.0,99.84074559]
[1739328716310,0.00022387,96001.0,96000.0,99.84074559]
[1739328716436,0.00322387,96001.0,96000.0,99.84074559]
[1739328717476,0.00122387,96001.0,96000.0,99.84374559]
[1739328717677,0.00222387,96001.0,96000.0,99.85474559]
[1739328721850,0.00222387,96001.0,96000.0,99.75224194]
[1739328722183,0.07742997,96016.0,96000.0,99.59599194]
[1739328722393,0.358292,96019.0,96003.0,0.023]
[1739328722638,0.208299,96016.0,96007.0,0.023]
[1739328722840,0.156222,96017.0,96009.0,0.023]
[1739328723183,0.156227,96014.0,96011.0,0.023]
[1739328723386,0.156227,96014.0,96012.0,0.10250365]
[1739328723662,0.156228,96013.0,96012.0,0.10250365]
[1739328724214,0.156226,96015.0,96012.0,0.10250365]
[1739328724565,0.156227,96014.0,96012.0,0.13863782]
[1739328724711,0.156227,96014.0,96012.0,0.10250365]
[1739328724914,0.156228,96013.0,96012.0,0.10250365]
[1739328725354,0.157228,96013.0,96012.0,0.004]
[1739328725529,0.15,96013.0,96001.0,0.9358]
[1739328725709,0.156246,96003.0,96002.0,0.10250365]
[1739328726161,0.156248,96001.0,96000.0,98.79118829]
[1739328726720,0.306248,96001.0,96000.0,98.79118829]
[1739328727534,0.307248,96001.0,96000.0,98.80218829]
[1739328728322,0.307248,96001.0,96000.0,98.80618829]
[1739328728555,0.307248,96001.0,96000.0,98.80218829]
[1739328728786,0.307248,96001.0,96000.0,98.80418829]
[1739328728993,0.306248,96001.0,96000.0,98.79318829]
[1739328729193,0.306248,96001.0,96000.0,98.79118829]
[1739328729421,0.307248,96001.0,96000.0,98.80318829]
[1739328729776,0.306248,96001.0,96000.0,98.79318829]
[1739328730269,0.307248,96001.0,96000.0,98.79718829]
[1739328730641,0.306248,96001.0,96000.0,98.79118829]
[1739328731189,0.306248,96001.0,96000.0,98.79318829]
[1739328731391,0.306248,96001.0,96000.0,98.79118829]
[1739328731600,0.306248,96001.0,96000.0,98.79318829]
[1739328732184,0.307248,96001.0,96000.0,98.79718829]
[1739328735870,0.306248,96001.0,96000.0,98.79318829]
[1739328736234,0.307248,96001.0,96000.0,98.79818829]
[1739328737072,0.307248,96001.0,96000.0,98.79618829]
[1739328737280,0.307248,96001.0,96000.0,98.79918829]
[1739328745291,0.317248,96001.0,96000.0,98.79918829]
[1739328747100,0.317248,96001.0,96000.0,98.79618829]
[1739328747471,0.317248,96001.0,96000.0,98.79918829]
[1739328747966,0.316248,96001.0,96000.0,98.79418829]
[1739328748199,0.317248,96001.0,96000.0,98.80018829]
[1739328750107,0.011,96001.0,96000.0,99.13449559]
[1739328750394,0.167248,96001.0,96000.0,99.12449559]
[1739328751188,0.011,96001.0,96000.0,99.30374559]
[1739328751385,0.011,96001.0,96000.0,99.14749559]
[1739328752338,0.01,96001.0,96000.0,99.14149559]
[1739328752688,0.011,96001.0,96000.0,99.14749559]
[1739328753096,0.011,96001.0,96000.0,99.14449559]
[1739328753300,0.011,96001.0,96000.0,99.30074559]
[1739328753504,0.012,96001.0,96000.0,99.84164559]
[1739328754125,0.011,96001.0,96000.0,99.83564559]
[1739328754330,0.012,96001.0,96000.0,99.84864559]
[1739328755202,0.01222387,96001.0,96000.0,99.84864559]
[1739328763793,0.01222387,96001.0,96000.0,100.16994559]
[1739328767640,0.01222387,96001.0,96000.0,100.06744194]
[1739328769855,0.01222387,96001.0,96000.0,99.53254194]
[1739328782843,0.06222387,96001.0,96000.0,99.53254194]
[1739328783093,0.06222387,96001.0,96000.0,99.29359194]
[1739328783318,0.06222387,96001.0,96000.0,99.24699194]
[1739328785644,0.06222387,96001.0,96000.0,99.22399194]
[1739328787458,0.21847187,96001.0,96000.0,99.22399194]
[1739328787901,0.06222387,96001.0,96000.0,99.22399194]
[1739328788134,0.21847187,96001.0,96000.0,99.22399194]
[1739328788405,0.06222387,96001.0,96000.0,99.22399194]
[1739328790541,0.21847187,96001.0,96000.0,99.22399194]
[1739328791270,0.21847187,96001.0,96000.0,99.12148829]
[1739328795600,0.17001084,96003.0,96000.0,99.12148829]
[1739328796429,0.17001084,96003.0,96000.0,98.78718829]
[1739328796584,0.156248,96001.0,96000.0,98.78718829]
[1739328796944,0.156248,96001.0,96000.0,98.79218829]
[1739328797159,0.156248,96001.0,96000.0,98.79718829]
[1739328798078,0.156248,96001.0,96000.0,98.78618829]
[1739328798429,0.157248,96001.0,96000.0,98.79418829]
[1739328798635,0.158248,96001.0,96000.0,98.80018829]
[1739328799388,0.157248,96001.0,96000.0,98.78718829]
[1739328799589,0.157248,96001.0,96000.0,98.79118829]
[1739328799953,0.156248,96001.0,96000.0,98.78118829]
[1739328800351,0.156248,96001.0,96000.0,98.78618829]
[1739328801566,0.156248,96001.0,96000.0,98.78118829]
[1739328801766,0.156248,96001.0,96000.0,98.78418829]
[1739328801996,0.156248,96001.0,96000.0,98.78918829]
[1739328802200,0.306248,96001.0,96000.0,98.78618829]
[1739328802377,0.306248,96001.0,96000.0,98.78918829]
[1739328802579,0.306248,96001.0,96000.0,98.78418829]
[1739328802805,0.306248,96001.0,96000.0,98.78818829]
[1739328803147,0.306248,96001.0,96000.0,98.78118829]
[1739328803604,0.306248,96001.0,96000.0,98.78418829]
[1739328805391,0.356248,96001.0,96000.0,98.78418829]
[1739328806146,0.436448,96001.0,96000.0,98.78418829]
[1739328806351,0.436448,96001.0,96000.0,98.78118829]
[1739328806548,0.436448,96001.0,96000.0,98.78318829]
[1739328807133,0.436448,96001.0,96000.0,98.78418829]
[1739328807846,0.436448,96001.0,96000.0,98.78218829]
[1739328808048,0.436448,96001.0,96000.0,98.78418829]
[1739328808590,0.436448,96001.0,96000.0,98.78318829]
[1739328808791,0.436448,96001.0,96000.0,98.78418829]
[1739328819018,0.356248,96001.0,96000.0,98.78418829]
[1739328819450,1.883481,96001.0,96000.0,98.78418829]
[1739328819657,2.150757,96001.0,96000.0,98.78418829]
[1739328820180,2.238387,96001.0,96000.0,98.78418829]
[1739328820400,1.94286,96001.0,96000.0,98.78418829]
[1739328820595,1.94286,96001.0,96000.0,98.78218829]
[1739328820741,1.927575,96001.0,96000.0,98.78118829]
[1739328820943,1.930575,96001.0,96000.0,98.78118829]
[1739328821139,1.938575,96001.0,96000.0,98.78218829]
[1739328821546,1.933575,96001.0,96000.0,98.78118829]
[1739328821861,1.916048,96001.0,96000.0,98.78118829]
[1739328822698,1.924048,96001.0,96000.0,98.78218829]
[1739328823113,1.666079,96001.0,96000.0,98.78218829]
[1739328823320,1.532826,96001.0,96000.0,98.78218829]
[1739328823935,1.482663,96001.0,96000.0,98.78118829]
[1739328824146,1.454088,96001.0,96000.0,98.78218829]
[1739328825816,1.63489165,96001.0,96000.0,98.78218829]
[1739328830347,1.64321801,96001.0,96000.0,98.78118829]
[1739328830835,0.62729401,96001.0,96000.0,98.78118829]
[1739328831095,3.49339901,96001.0,96000.0,98.78218829]
[1739328831310,3.33736901,96001.0,96000.0,98.78218829]
[1739328831552,1.59559801,96001.0,96000.0,98.78218829]
[1739328831766,1.23672801,96001.0,96000.0,98.78218829]
[1739328831992,1.23372801,96001.0,96000.0,98.78218829]
[1739328832193,1.23772801,96001.0,96000.0,98.78218829]
[1739328832801,1.24532801,96001.0,96000.0,98.78218829]
[1739328833451,1.22900165,96001.0,96000.0,98.78218829]
[1739328835026,1.118898,96001.0,96000.0,98.78218829]
[1739328835267,0.950417,96001.0,96000.0,98.78218829]
[1739328837959,0.96674295,96001.0,96000.0,98.78218829]
[1739328838187,1.17742065,96001.0,96000.0,98.71985161]
[1739328838615,1.65735185,96001.0,96000.0,98.04321025]
[1739328838924,1.66276059,96001.0,96000.0,98.04321025]
[1739328839329,1.69305117,96001.0,96000.0,98.04321025]
[1739328839538,1.68905117,96001.0,96000.0,98.04321025]
[1739328839740,1.72909887,96001.0,96000.0,98.04321025]
[1739328839944,1.72109887,96001.0,96000.0,98.04321025]
[1739328840166,1.72909887,96001.0,96000.0,98.04321025]
[1739328840343,1.74542703,96001.0,96000.0,98.04321025]
[1739328840693,1.73042703,96001.0,96000.0,98.04221025]
[1739328841183,1.74542703,96001.0,96000.0,98.04321025]
[1739328841585,1.24877403,96001.0,96000.0,98.04421025]
[1739328841936,1.26988908,96001.0,96000.0,98.04421025]
[1739328842075,5.5227715,96001.0,96000.0,98.04421025]
[1739328842275,5.52001438,96001.0,96000.0,98.04421025]
[1739328842995,5.4897238,96001.0,96000.0,98.04421025]
[1739328844511,5.4997238,96001.0,96000.0,98.04421025]
[1739328845082,5.56306208,96001.0,96000.0,98.04421025]
[1739328846301,5.54194703,96001.0,96000.0,98.04421025]
[1739328847696,5.49506745,96001.0,96000.0,98.04421025]
[1739328848102,5.52535803,96001.0,96000.0,98.04421025]
[1739328848347,5.49231033,96001.0,96000.0,98.04421025]
[1739328848549,4.93100475,96001.0,96000.0,98.04421025]
[1739328848757,4.73542562,96001.0,96000.0,98.04421025]
[1739328849128,4.22989262,96001.0,96000.0,98.04421025]
[1739328849536,4.08539262,96001.0,96000.0,98.04421025]
[1739328849742,3.46869342,96001.0,96000.0,98.04421025]
[1739328849985,2.12859642,96001.0,96000.0,98.04421025]
[1739328850144,1.67046926,96001.0,96000.0,98.04421025]
[1739328851143,1.82046926,96001.0,96000.0,98.04421025]
[1739328852308,0.56490026,96001.0,96000.0,98.04421025]
[1739328852478,2.50605426,96001.0,96000.0,98.04421025]
[1739328852640,2.50103826,96001.0,96000.0,98.04421025]
[1739328852846,2.5222311,96001.0,96000.0,98.04421025]
[1739328853181,3.00848167,96001.0,96000.0,98.04421025]
[1739328856125,2.98728883,96001.0,96000.0,98.04421025]
[1739328860687,2.51736573,96001.0,96000.0,98.04421025]
[1739328861318,2.53825122,96001.0,96000.0,98.04421025]
[1739328863312,3.13219022,96001.0,96000.0,98.04421025]
[1739328863534,3.11586275,96001.0,96000.0,98.04421025]